bitfinex-derivatives/quotes_BTCF0:USTF0_20250921
["timestamp","ask_amount","ask_price","bid_price","bid_amount"]
[1758493395137,1.9182811,115310.0,115300.0,0.0054]
[1758493398633,1.9170411,115310.0,115300.0,0.0054]
[1758493403648,1.9162811,115310.0,115300.0,0.0054]
[1758493403950,1.89145178,115310.0,115300.0,0.02689]
[1758493404343,1.89133178,115310.0,115300.0,0.02689]
[1758493406152,1.91614963,115310.0,115300.0,0.02689]
[1758493407046,1.91570963,115310.0,115300.0,0.02689]
[1758493407746,1.89089178,115310.0,115300.0,0.02689]
[1758493408446,1.08901178,115310.0,115300.0,0.02689]
[1758493408754,1.89077178,115310.0,115300.0,0.02689]
[1758493409250,0.65993776,115310.0,115300.0,0.02689]
[1758493409451,1.67587477,115310.0,115300.0,0.02689]
[1758493409844,1.67583477,115310.0,115300.0,0.02689]
[1758493410252,1.67599477,115310.0,115300.0,0.02689]
[1758493410751,0.87447477,115310.0,115300.0,0.02689]
[1758493411053,0.65993776,115310.0,115300.0,0.02689]
[1758493411255,1.67579477,115310.0,115300.0,0.1135651]
[1758493411755,0.62447477,115310.0,115300.0,0.1135651]
[1758493411947,1.42563477,115310.0,115300.0,0.1135651]
[1758493412455,1.21109776,115310.0,115300.0,0.1135651]
[1758493412654,1.42563477,115310.0,115300.0,0.1135651]
[1758493415054,1.42563477,115310.0,115300.0,0.02689]
[1758493416455,0.62447477,115310.0,115300.0,0.24142701]
[1758493416649,1.21081776,115310.0,115300.0,0.25511701]
[1758493416846,1.42535477,115310.0,115300.0,0.25511701]
[1758493418059,0.62447477,115310.0,115300.0,0.25511701]
[1758493418259,1.42507477,115310.0,115300.0,0.25511701]
[1758493419651,0.62447477,115310.0,115300.0,0.34179211]
[1758493419861,0.61090477,115310.0,115300.0,0.1272551]
[1758493420157,0.61090477,115310.0,115300.0,0.34179211]
[1758493420861,1.41122477,115310.0,115300.0,0.34179211]
[1758493421160,1.41114477,115310.0,115300.0,0.34179211]
[1758493422357,0.83580776,115310.0,115300.0,0.34179211]
[1758493422661,0.25010477,115310.0,115300.0,0.34179211]
[1758493422857,0.03556776,115310.0,115300.0,0.59179211]
[1758493423156,0.03556776,115310.0,115300.0,1.16712912]
[1758493423361,0.01370776,115310.0,115300.0,1.16712912]
[1758493423555,0.005,115310.0,115300.0,1.16712912]
[1758493424452,0.005,115310.0,115300.0,1.96696912]
[1758493426959,0.005,115310.0,115300.0,1.16712912]
[1758493427264,0.005,115310.0,115300.0,0.7380551]
[1758493427463,0.005,115310.0,115300.0,1.96824912]
[1758493429069,0.005,115310.0,115300.0,1.16712912]
[1758493429270,0.005,115310.0,115300.0,1.96800912]
[1758493429769,0.005,115310.0,115300.0,1.16712912]
[1758493429967,0.005,115310.0,115300.0,1.96800912]
[1758493430368,0.005,115310.0,115300.0,1.96792912]
[1758493430967,0.005,115310.0,115300.0,1.96784912]
[1758493431562,0.005,115310.0,115300.0,1.16712912]
[1758493431769,0.005,115310.0,115300.0,1.96772912]
[1758493432770,0.005,115310.0,115300.0,1.16712912]
[1758493433072,0.005,115310.0,115300.0,1.96740912]
[1758493435470,0.005,115310.0,115300.0,1.16712912]
[1758493435671,0.005,115310.0,115300.0,1.96696912]
[1758493436372,0.005,115310.0,115300.0,1.71696912]
[1758493436972,0.005,115310.0,115300.0,0.91712912]
[1758493437175,0.005,115310.0,115300.0,1.71680912]
[1758493438374,0.005,115310.0,115300.0,0.91712912]
[1758493438575,0.005,115310.0,115300.0,1.71660912]
[1758493438976,0.005,115310.0,115300.0,0.91712912]
[1758493439170,0.005,115310.0,115300.0,1.71648912]
[1758493440868,0.005,115310.0,115300.0,0.91712912]
[1758493441178,0.005,115310.0,115300.0,1.71708912]
[1758493442481,0.005,115310.0,115300.0,1.93162613]
[1758493442677,0.005,115310.0,115300.0,2.18162613]
[1758493442982,0.005,115310.0,115300.0,2.29184909]
[1758493443571,0.005,115310.0,115300.0,1.49092909]
[1758493443776,0.005,115310.0,115300.0,3.79172909]
[1758493446084,0.005,115310.0,115300.0,2.99092909]
[1758493446279,0.005,115310.0,115300.0,3.79136909]
[1758493446584,0.005,115310.0,115300.0,3.68210613]
[1758493447579,0.005,115310.0,115300.0,2.88166613]
[1758493447775,0.005,115310.0,115300.0,3.68198613]
[1758493448584,0.0001,115320.0,115310.0,0.1221378]
[1758493448779,0.0001,115330.0,115320.0,0.1221303]
[1758493448986,0.0424636,115340.0,115330.0,0.1221228]
[1758493449176,0.0205536,115340.0,115330.0,0.69745981]
[1758493449788,0.0209536,115340.0,115330.0,0.69745981]
[1758493451784,0.0024,115340.0,115330.0,0.91199682]
[1758493452188,0.002,115340.0,115330.0,0.91199682]
[1758493452390,0.0024,115340.0,115330.0,0.91199682]
[1758493452688,0.002,115340.0,115330.0,0.69720182]
[1758493452885,0.0024,115340.0,115330.0,0.69720182]
[1758493454089,0.0024,115340.0,115330.0,1.49764182]
[1758493454683,0.0024,115340.0,115330.0,1.49812182]
[1758493454885,0.0024,115340.0,115330.0,1.49832182]
[1758493455084,0.0024,115340.0,115330.0,1.49828182]
[1758493455791,0.0104,115340.0,115330.0,1.50228182]
[1758493456590,0.0104,115340.0,115330.0,0.70120182]
[1758493456794,0.0104,115340.0,115330.0,1.50196182]
[1758493457093,0.0104,115340.0,115330.0,1.50188182]
[1758493464494,0.0104,115340.0,115330.0,0.4869228]
[1758493464694,0.0104,115340.0,115330.0,1.50188182]
[1758493466295,0.0104,115340.0,115330.0,0.70120182]
[1758493466497,0.0104,115340.0,115330.0,1.50188182]
[1758493467897,0.0104,115340.0,115330.0,1.86268182]
[1758493468197,0.0104,115340.0,115330.0,1.06200182]
[1758493468388,0.0104,115340.0,115330.0,1.86352182]
[1758493468797,0.0104,115340.0,115330.0,1.06200182]
[1758493468999,0.0104,115340.0,115330.0,1.86304182]
[1758493469698,0.0104,115340.0,115330.0,1.06200182]
[1758493469901,0.0104,115340.0,115330.0,1.86304182]
[1758493472600,0.0104,115340.0,115330.0,1.06200182]
[1758493472802,0.0104,115340.0,115330.0,1.86256182]
[1758493473506,0.0104,115340.0,115330.0,1.6482828]
[1758493473802,0.0104,115340.0,115330.0,1.86256182]
[1758493481612,0.0104,115340.0,115330.0,1.97182478]
[1758493484917,0.0104,115340.0,115330.0,1.25022478]
[1758493485106,0.0104,115340.0,115330.0,1.97182478]
[1758493485517,0.0104,115340.0,115330.0,7.71292478]
[1758493490113,0.0104,115340.0,115330.0,7.9272038]
[1758493490516,0.0001,115350.0,115340.0,0.03543]
[1758493490818,0.0009,115360.0,115350.0,0.1220678]
[1758493491016,0.03142385,115370.0,115360.0,0.1220603]
[1758493491213,0.02259,115370.0,115360.0,0.69713932]
[1758493492823,0.03120156,115370.0,115360.0,0.69713932]
[1758493493419,0.04820156,115370.0,115360.0,0.70113932]
[1758493493917,0.04820156,115370.0,115360.0,0.70213932]
[1758493494126,0.05320156,115370.0,115360.0,0.70213932]
[1758493511232,0.05320156,115370.0,115360.0,0.4878603]
[1758493511531,0.05320156,115370.0,115360.0,0.70213932]
[1758493514733,0.05320156,115370.0,115360.0,0.91631618]
[1758493520126,0.022,115370.0,115360.0,1.38054412]
[1758493520833,0.0224,115370.0,115360.0,1.49854954]
[1758493521038,0.022,115370.0,115360.0,1.49854954]
[1758493521337,0.0224,115370.0,115360.0,2.29542954]
[1758493521534,0.0001,115380.0,115370.0,0.1220327]
[1758493521730,0.13025909,115390.0,115380.0,0.1220252]
[1758493521931,0.13015909,115390.0,115380.0,1.70816108]
[1758493523132,0.13315909,115390.0,115380.0,1.70916108]
[1758493523330,0.13315909,115390.0,115380.0,0.91228108]
[1758493523638,0.13315909,115390.0,115380.0,1.70912108]
[1758493523942,0.13315909,115390.0,115380.0,0.91228108]
[1758493524143,0.13315909,115390.0,115380.0,1.70912108]
[1758493524640,0.14615909,115390.0,115380.0,1.71212108]
[1758493525043,0.14615909,115390.0,115380.0,0.91528108]
[1758493525234,0.14615909,115390.0,115380.0,1.71212108]
[1758493525738,0.12480909,115390.0,115380.0,1.71212108]
[1758493526036,0.12520909,115390.0,115380.0,1.71212108]
[1758493526438,0.12480909,115390.0,115380.0,1.71212108]
[1758493526839,0.13120909,115390.0,115380.0,1.71641626]
[1758493527142,0.1224,115390.0,115380.0,1.71641626]
[1758493528140,0.35786794,115390.0,115380.0,0.04370518]
[1758493528344,0.98179794,115390.0,115380.0,0.03026518]
[1758493528539,0.98179794,115390.0,115380.0,0.11728048]
[1758493528744,0.62099794,115390.0,115380.0,0.03066518]
[1758493528944,0.40677,115390.0,115380.0,0.03066518]
[1758493529146,0.62099794,115390.0,115380.0,0.33150842]
[1758493529544,0.62099794,115390.0,115380.0,0.24489312]
[1758493530038,0.40677,115390.0,115380.0,0.03066518]
[1758493530242,0.62099794,115390.0,115380.0,0.03066518]
[1758493531140,0.62099794,115390.0,115380.0,0.24489312]
[1758493531341,0.62334521,115390.0,115380.0,0.1125852]
[1758493531542,0.62334521,115390.0,115380.0,0.4733852]
[1758493531742,0.62974521,115390.0,115380.0,0.68761314]
[1758493532148,0.62974521,115390.0,115380.0,0.69190832]
[1758493534452,0.41551727,115390.0,115380.0,0.69190832]
[1758493534653,0.36661521,115390.0,115380.0,0.70583832]
[1758493535150,0.36661521,115390.0,115380.0,0.92006626]
[1758493535650,0.36701521,115390.0,115380.0,0.92006626]
[1758493536451,0.36021521,115390.0,115380.0,0.91577108]
[1758493536850,0.36021521,115390.0,115380.0,0.92006626]
[1758493537147,0.36021521,115390.0,115380.0,0.70583832]
[1758493537452,0.36661521,115390.0,115380.0,0.70583832]
[1758493537754,0.36661521,115390.0,115380.0,0.92006626]
[1758493538047,0.15238727,115390.0,115380.0,0.92006626]
[1758493538754,0.15278727,115390.0,115380.0,0.92006626]
[1758493538946,0.15278727,115390.0,115380.0,0.49161038]
[1758493539146,0.36701521,115390.0,115380.0,0.92006626]
[1758493539448,0.15278727,115390.0,115380.0,0.92006626]
[1758493539754,0.36701521,115390.0,115380.0,0.92006626]
[1758493540853,0.36701521,115390.0,115380.0,0.49161038]
[1758493541053,0.36701521,115390.0,115380.0,0.92006626]
[1758493541256,0.15278727,115390.0,115380.0,1.50247832]
[1758493541553,0.36061521,115390.0,115380.0,1.50247832]
[1758493541753,0.36021521,115390.0,115380.0,1.49818314]
[1758493542157,0.36021521,115390.0,115380.0,1.50247832]
[1758493542554,0.36661521,115390.0,115380.0,1.50247832]
[1758493546364,0.36021521,115390.0,115380.0,1.49818314]
[1758493546862,0.36661521,115390.0,115380.0,1.50247832]
[1758493547856,0.36661521,115390.0,115380.0,1.28825038]
[1758493548057,0.36661521,115390.0,115380.0,1.71670626]
[1758493550454,0.15238727,115390.0,115380.0,1.71670626]
[1758493551163,0.15278727,115390.0,115380.0,1.71670626]
[1758493551364,0.14598727,115390.0,115380.0,1.71241108]
[1758493551760,0.15238727,115390.0,115380.0,1.71670626]
[1758493555568,0.15238727,115390.0,115380.0,1.28825038]
[1758493555868,0.15238727,115390.0,115380.0,1.71670626]
[1758493556368,0.14598727,115390.0,115380.0,1.71241108]
[1758493556870,0.12474727,115390.0,115380.0,1.71670626]
[1758493557170,0.13114727,115390.0,115380.0,1.71670626]
[1758493557468,0.13114727,115390.0,115380.0,1.71750626]
[1758493559567,0.13154727,115390.0,115380.0,1.71750626]
[1758493561368,0.12474727,115390.0,115380.0,1.71321108]
[1758493561667,0.12514727,115390.0,115380.0,1.71265108]
[1758493561871,0.13154727,115390.0,115380.0,1.71265108]
[1758493562069,0.13154727,115390.0,115380.0,1.71694626]
[1758493562777,0.15355727,115390.0,115380.0,0.92006626]
[1758493563073,0.15355727,115390.0,115380.0,1.71674626]
[1758493564071,0.15355727,115390.0,115380.0,1.71670626]
[1758493565074,0.15355727,115390.0,115380.0,0.92006626]
[1758493565272,0.15355727,115390.0,115380.0,1.28825038]
[1758493565472,0.15355727,115390.0,115380.0,1.71670626]
[1758493565778,0.15355727,115390.0,115380.0,0.92006626]
[1758493565978,0.15355727,115390.0,115380.0,1.71670626]
[1758493566365,0.14675727,115390.0,115380.0,1.71241108]
[1758493566773,0.15315727,115390.0,115380.0,1.71670626]
[1758493566974,0.15315727,115390.0,115380.0,0.92006626]
[1758493567176,0.15315727,115390.0,115380.0,1.71666626]
[1758493567387,0.15315727,115390.0,115380.0,0.92006626]
[1758493567984,0.15315727,115390.0,115380.0,1.71666626]
[1758493568291,0.15315727,115390.0,115380.0,0.92006626]
[1758493568590,0.15315727,115390.0,115380.0,1.71666626]
[1758493571396,0.14675727,115390.0,115380.0,1.71237108]
[1758493571894,0.15315727,115390.0,115380.0,0.92006626]
[1758493572095,0.15315727,115390.0,115380.0,1.71666626]
[1758493574596,0.15315727,115390.0,115380.0,1.50238176]
[1758493576396,0.14675727,115390.0,115380.0,1.49808658]
[1758493576889,0.15315727,115390.0,115380.0,1.50238176]
[1758493578297,0.15315727,115390.0,115380.0,1.50234176]
[1758493581497,0.14675727,115390.0,115380.0,1.49804658]
[1758493581896,0.15315727,115390.0,115380.0,1.50234176]
[1758493585500,0.13114727,115390.0,115380.0,1.50234176]
[1758493586400,0.12474727,115390.0,115380.0,1.49804658]
[1758493586903,0.13114727,115390.0,115380.0,1.50234176]
[1758493591403,0.12474727,115390.0,115380.0,1.49804658]
[1758493591902,0.12474727,115390.0,115380.0,1.50234176]
[1758493592302,0.13114727,115390.0,115380.0,1.50234176]
[1758493594703,0.13114727,115390.0,115380.0,1.86314176]
[1758493595004,0.13114727,115390.0,115380.0,1.06658176]
[1758493595204,0.13114727,115390.0,115380.0,1.86302176]
[1758493596401,0.12474727,115390.0,115380.0,1.85872658]
[1758493596799,0.13114727,115390.0,115380.0,1.85872658]
[1758493597294,0.13114727,115390.0,115380.0,1.86302176]
[1758493597502,0.13114727,115390.0,115380.0,1.86298176]
[1758493597803,0.13114727,115390.0,115380.0,1.06658176]
[1758493597999,0.13114727,115390.0,115380.0,1.86298176]
[1758493599205,0.13114727,115390.0,115380.0,1.06658176]
[1758493599404,0.13114727,115390.0,115380.0,1.86298176]
[1758493600105,0.13114727,115390.0,115380.0,1.06658176]
[1758493600307,0.13114727,115390.0,115380.0,1.86294176]
[1758493601406,0.12474727,115390.0,115380.0,1.85864658]
[1758493601806,0.13114727,115390.0,115380.0,1.86294176]
[1758493602708,0.13114727,115390.0,115380.0,1.06658176]
[1758493602909,0.13114727,115390.0,115380.0,1.86294176]
[1758493604512,0.13114727,115390.0,115380.0,1.06658176]
[1758493604805,0.13114727,115390.0,115380.0,1.86294176]
[1758493606612,0.12474727,115390.0,115380.0,1.85864658]
[1758493606814,0.13114727,115390.0,115380.0,1.86294176]
[1758493608114,0.13114727,115390.0,115380.0,1.06658176]
[1758493608310,0.13114727,115390.0,115380.0,1.86286176]
[1758493611311,0.13114727,115390.0,115380.0,1.64869038]
[1758493611516,0.12474727,115390.0,115380.0,1.85856658]
[1758493611918,0.12474727,115390.0,115380.0,1.86286176]
[1758493612312,0.13114727,115390.0,115380.0,1.86286176]
[1758493614414,0.1224,115390.0,115380.0,2.07703314]
[1758493614620,0.1228,115390.0,115380.0,2.07703314]
[1758493614814,0.1228,115390.0,115380.0,2.43623381]
[1758493616428,0.116,115390.0,115380.0,2.43193863]
[1758493616814,0.1224,115390.0,115380.0,2.43623381]
[1758493621422,0.116,115390.0,115380.0,2.43193863]
[1758493621923,0.1224,115390.0,115380.0,2.43623381]
[1758493623327,0.1224,115390.0,115380.0,2.32703314]
[1758493626427,0.116,115390.0,115380.0,2.32273796]
[1758493627025,0.1224,115390.0,115380.0,2.32703314]
[1758493627229,0.1224,115390.0,115380.0,1.10241038]
[1758493627527,0.1224,115390.0,115380.0,2.32671314]
[1758493631023,0.1224,115390.0,115380.0,2.40463268]
[1758493631426,0.116,115390.0,115380.0,2.4003375]
[1758493631826,0.1224,115390.0,115380.0,2.40463268]
[1758493632030,0.1224,115390.0,115380.0,2.32671314]
[1758493633031,0.1224,115390.0,115380.0,2.40461805]
[1758493633329,0.1224,115390.0,115380.0,2.32671314]
[1758493633830,0.1224,115390.0,115380.0,2.43591381]
[1758493636328,0.1224,115390.0,115380.0,2.43161863]
[1758493636529,0.116,115390.0,115380.0,1.84962358]
[1758493636735,0.116,115390.0,115380.0,2.64542358]
[1758493636939,0.116,115390.0,115380.0,2.64971876]
[1758493637235,0.1224,115390.0,115380.0,2.64971876]
[1758493637637,0.1224,115390.0,115380.0,2.43561619]
[1758493641340,0.116,115390.0,115380.0,2.43132101]
[1758493641837,0.116,115390.0,115380.0,2.43561619]
[1758493642137,0.1224,115390.0,115380.0,2.43561619]
[1758493642332,0.1224,115390.0,115380.0,2.64971876]
[1758493643137,0.1224,115390.0,115380.0,2.64959876]
[1758493643436,0.1224,115390.0,115380.0,2.43549619]
[1758493643934,0.1224,115390.0,115380.0,1.63981619]
[1758493644139,0.1224,115390.0,115380.0,2.43545619]
[1758493646350,0.116,115390.0,115380.0,2.43545619]
[1758493646552,0.116,115390.0,115380.0,2.43116101]
[1758493647043,0.1224,115390.0,115380.0,2.43545619]
[1758493647441,0.1224,115390.0,115380.0,2.00725105]
[1758493647641,0.1224,115390.0,115380.0,2.43545619]
[1758493649354,0.1224,115390.0,115380.0,1.63981619]
[1758493649853,0.1224,115390.0,115380.0,2.43537619]
[1758493651348,0.116,115390.0,115380.0,2.43108101]
[1758493651749,0.1224,115390.0,115380.0,1.63981619]
[1758493652053,0.1224,115390.0,115380.0,2.43533619]
[1758493656358,0.116,115390.0,115380.0,2.43104101]
[1758493656854,0.1224,115390.0,115380.0,2.43533619]
[1758493659261,0.1224,115390.0,115380.0,2.18533619]
[1758493661361,0.116,115390.0,115380.0,2.18104101]
[1758493661864,0.1224,115390.0,115380.0,2.18533619]
[1758493662863,0.1224,115390.0,115380.0,1.46373619]
[1758493663065,0.1224,115390.0,115380.0,2.18533619]
[1758493666368,0.116,115390.0,115380.0,2.18533619]
[1758493666569,0.116,115390.0,115380.0,2.18104101]
[1758493666973,0.1224,115390.0,115380.0,2.18533619]
[1758493670770,0.1224,115390.0,115380.0,1.75713105]
[1758493671070,0.1224,115390.0,115380.0,2.18533619]
[1758493671476,0.116,115390.0,115380.0,2.18533619]
[1758493671970,0.116,115390.0,115380.0,2.18104101]
[1758493672167,0.116,115390.0,115380.0,2.18533619]
[1758493672370,0.1224,115390.0,115380.0,2.18533619]
[1758493676374,0.116,115390.0,115380.0,2.18104101]
[1758493676875,0.1224,115390.0,115380.0,2.18533619]
[1758493681377,0.116,115390.0,115380.0,2.18104101]
[1758493681977,0.1224,115390.0,115380.0,2.18533619]
[1758493684374,0.1224,115390.0,115380.0,1.46373619]
[1758493684579,0.1224,115390.0,115380.0,2.18533619]
[1758493686382,0.116,115390.0,115380.0,1.75283587]
[1758493686582,0.116,115390.0,115380.0,2.18104101]
[1758493686783,0.116,115390.0,115380.0,2.18533619]
[1758493686979,0.1224,115390.0,115380.0,2.18533619]
[1758493689273,0.1224,115390.0,115380.0,1.75637105]
[1758493689472,0.35666266,115390.0,115380.0,1.17571362]
[1758493689772,0.35666266,115390.0,115380.0,1.97087362]
[1758493690480,0.35666266,115390.0,115380.0,2.18497619]
[1758493691383,0.35026266,115390.0,115380.0,2.18028101]
[1758493692181,0.35666266,115390.0,115380.0,2.18457619]
[1758493695082,0.35666266,115390.0,115380.0,2.07537552]
[1758493695585,0.14256009,115390.0,115380.0,2.07537552]
[1758493696281,0.14256009,115390.0,115380.0,1.64717038]
[1758493696482,0.35666266,115390.0,115380.0,1.85697777]
[1758493696679,0.14256009,115390.0,115380.0,1.93500377]
[1758493696882,0.13616009,115390.0,115380.0,1.93500377]
[1758493697289,0.14256009,115390.0,115380.0,1.93929895]
[1758493699390,0.14256009,115390.0,115380.0,0.93036427]
[1758493699590,0.17750009,115390.0,115380.0,0.93076427]
[1758493699785,0.17750009,115390.0,115380.0,1.72532427]
[1758493700991,0.17750009,115390.0,115380.0,1.36452427]
[1758493701381,0.17750009,115390.0,115380.0,1.36022909]
[1758493701786,0.17110009,115390.0,115380.0,1.35982909]
[1758493702194,0.17750009,115390.0,115380.0,1.36412427]
[1758493702391,0.17750009,115390.0,115380.0,1.57829895]
[1758493704795,0.17750009,115390.0,115380.0,1.50034506]
[1758493706399,0.17110009,115390.0,115380.0,1.49604988]
[1758493706895,0.17750009,115390.0,115380.0,1.50034506]
[1758493707802,0.39167477,115390.0,115380.0,1.28617038]
[1758493707996,0.39167477,115390.0,115380.0,0.49161038]
[1758493708299,0.39167477,115390.0,115380.0,1.27204038]
[1758493708499,0.39167477,115390.0,115380.0,1.27244038]
[1758493711407,0.38527477,115390.0,115380.0,1.2677452]
[1758493711801,0.39167477,115390.0,115380.0,1.27204038]
[1758493712604,0.39167477,115390.0,115380.0,0.39106518]
[1758493712907,1.00247477,115390.0,115380.0,0.11688068]
[1758493713102,1.00247477,115390.0,115380.0,0.11728068]
[1758493713807,0.64167477,115390.0,115380.0,0.11728068]
[1758493716410,0.63527477,115390.0,115380.0,0.1125855]
[1758493716808,0.64167477,115390.0,115380.0,0.11688068]
[1758493719316,0.39167477,115390.0,115380.0,0.11688068]
[1758493721514,0.39167477,115390.0,115380.0,0.1125855]
[1758493721716,0.38527477,115390.0,115380.0,0.1125855]
[1758493722216,0.39167477,115390.0,115380.0,0.11688068]
[1758493726418,0.38527477,115390.0,115380.0,0.1125855]
[1758493726821,0.39167477,115390.0,115380.0,0.11688068]
[1758493731424,0.39167477,115390.0,115380.0,0.1125855]
[1758493731821,0.38527477,115390.0,115380.0,0.4733855]
[1758493732022,0.17110009,115390.0,115380.0,0.70043018]
[1758493732217,0.17750009,115390.0,115380.0,0.70043018]
[1758493732524,0.17750009,115390.0,115380.0,0.4862555]
[1758493732825,0.17790009,115390.0,115380.0,0.49055068]
[1758493736326,0.17110009,115390.0,115380.0,0.4862555]
[1758493736728,0.17750009,115390.0,115380.0,0.49055068]
[1758493737229,0.39167477,115390.0,115380.0,0.49055068]
[1758493741424,0.38527477,115390.0,115380.0,0.4862555]
[1758493741830,0.39167477,115390.0,115380.0,0.49055068]
[1758493742736,0.37774477,115390.0,115380.0,0.49055068]
[1758493743028,0.16357009,115390.0,115380.0,0.70472536]
[1758493746425,0.15717009,115390.0,115380.0,0.70043018]
[1758493746836,0.16357009,115390.0,115380.0,0.70472536]
[1758493749727,0.16357009,115390.0,115380.0,0.49055068]
[1758493749932,0.16357009,115390.0,115380.0,0.70472536]
[1758493750128,0.16397009,115390.0,115380.0,1.49816536]
[1758493751332,0.15717009,115390.0,115380.0,1.49387018]
[1758493751735,0.16357009,115390.0,115380.0,1.49387018]
[1758493752234,0.16357009,115390.0,115380.0,1.49816536]
[1758493753934,0.16357009,115390.0,115380.0,0.70472536]
[1758493754334,0.16357009,115390.0,115380.0,1.49804536]
[1758493755941,0.16357009,115390.0,115380.0,0.70472536]
[1758493756439,0.15717009,115390.0,115380.0,1.49371018]
[1758493756830,0.16357009,115390.0,115380.0,1.49800536]
[1758493758539,0.3777482,115390.0,115380.0,1.49800879]
[1758493759139,0.16357009,115390.0,115380.0,1.49800879]
[1758493759337,0.3777482,115390.0,115380.0,1.49800879]
[1758493761337,0.3713482,115390.0,115380.0,1.49800879]
[1758493761528,0.3713482,115390.0,115380.0,1.49371361]
[1758493761938,0.3777482,115390.0,115380.0,1.49800879]
[1758493762939,0.3777482,115390.0,115380.0,1.7121869]
[1758493765244,0.3777482,115390.0,115380.0,0.9189069]
[1758493765438,0.3777482,115390.0,115380.0,1.7119869]
[1758493765639,0.3777482,115390.0,115380.0,0.49055068]
[1758493765838,0.3777482,115390.0,115380.0,1.49776879]
[1758493766342,0.3713482,115390.0,115380.0,1.13267361]
[1758493766542,0.3713482,115390.0,115380.0,1.49347361]
[1758493766738,0.3713482,115390.0,115380.0,1.49776879]
[1758493766939,0.3777482,115390.0,115380.0,1.49776879]
[1758493767946,0.3777482,115390.0,115380.0,1.13696879]
[1758493768250,0.3917082,115390.0,115380.0,1.28359068]
[1758493768435,0.16357009,115390.0,115380.0,1.7119469]
[1758493768632,0.3777482,115390.0,115380.0,1.49776879]
[1758493770743,0.3777482,115390.0,115380.0,1.49768879]
[1758493771345,0.3777482,115390.0,115380.0,1.49339361]
[1758493771847,0.3713482,115390.0,115380.0,1.49339361]
[1758493772233,0.3777482,115390.0,115380.0,1.49768879]
[1758493772434,0.3777482,115390.0,115380.0,1.49756879]
[1758493772645,0.3777482,115390.0,115380.0,1.13676879]
[1758493776350,0.3713482,115390.0,115380.0,1.13247361]
[1758493776852,0.3777482,115390.0,115380.0,1.13676879]
[1758493781351,0.3713482,115390.0,115380.0,1.13247361]
[1758493781852,0.3777482,115390.0,115380.0,1.13676879]
[1758493786356,0.3713482,115390.0,115380.0,1.13247361]
[1758493786854,0.3777482,115390.0,115380.0,1.13676879]
[1758493790062,0.3777482,115390.0,115380.0,0.34392879]
[1758493790458,0.3777482,115390.0,115380.0,1.13628879]
[1758493790860,0.3777482,115390.0,115380.0,0.34392879]
[1758493791158,0.3777482,115390.0,115380.0,1.13628879]
[1758493791359,0.3713482,115390.0,115380.0,1.13199361]
[1758493791966,0.3713482,115390.0,115380.0,1.13628879]
[1758493792259,0.3777482,115390.0,115380.0,1.13628879]
[1758493792959,0.3777482,115390.0,115380.0,1.49708879]
[1758493793758,0.3777482,115390.0,115380.0,0.70472879]
[1758493793959,0.3777482,115390.0,115380.0,1.49700879]
[1758493795353,0.3777482,115390.0,115380.0,0.70472879]
[1758493795554,0.3777482,115390.0,115380.0,1.49700879]
[1758493796371,0.3713482,115390.0,115380.0,0.70043361]
[1758493796568,0.3713482,115390.0,115380.0,1.49267361]
[1758493796769,0.3713482,115390.0,115380.0,1.49696879]
[1758493796966,0.3777482,115390.0,115380.0,1.49696879]
[1758493800477,0.3777482,115390.0,115380.0,0.70472879]
[1758493801075,0.3777482,115390.0,115380.0,1.49680879]
[1758493801275,0.3777482,115390.0,115380.0,0.49055228]
[1758493801475,0.3713482,115390.0,115380.0,1.49251521]
[1758493801873,0.59857631,115390.0,115380.0,1.18314518]
[1758493802077,0.3843982,115390.0,115380.0,0.82234518]
[1758493802277,0.3907982,115390.0,115380.0,0.82234518]
[1758493802477,0.3907982,115390.0,115380.0,0.90936228]
[1758493802778,0.3907982,115390.0,115380.0,0.11728228]
[1758493806380,0.3843982,115390.0,115380.0,0.1125871]
[1758493806875,0.3907982,115390.0,115380.0,0.11688228]
[1758493809781,0.39083147,115390.0,115380.0,0.11688228]
[1758493811384,0.38443147,115390.0,115380.0,0.1125871]
[1758493811793,0.39083147,115390.0,115380.0,0.11688228]
[1758493815590,0.39083147,115390.0,115380.0,0.03026518]
[1758493815885,0.60500958,115390.0,115380.0,0.03026518]
[1758493816085,1.21580958,115390.0,115380.0,0.00869518]
[1758493816284,1.21580958,115390.0,115380.0,0.03179518]
[1758493816488,1.20940958,115390.0,115380.0,0.0271]
[1758493816791,1.21580958,115390.0,115380.0,0.03139518]
[1758493817890,2.00748958,115390.0,115380.0,0.03139518]
[1758493820594,1.79337838,115390.0,115380.0,0.03139518]
[1758493821397,1.78697838,115390.0,115380.0,0.0271]
[1758493821797,1.79337838,115390.0,115380.0,0.03139518]
[1758493821991,1.00169838,115390.0,115380.0,0.03139518]
[1758493822192,1.79321838,115390.0,115380.0,0.11801228]
[1758493822691,1.79321838,115390.0,115380.0,0.03139518]
[1758493822895,1.79321838,115390.0,115380.0,0.00829518]
[1758493823097,1.79321838,115390.0,115380.0,0.00869518]
[1758493823801,1.00169838,115390.0,115380.0,0.00869518]
[1758493824098,1.79317838,115390.0,115380.0,0.00869518]
[1758493824400,1.79317838,115390.0,115380.0,0.03179518]
[1758493826302,1.79317838,115390.0,115380.0,0.00869518]
[1758493826503,1.79317838,115390.0,115380.0,0.004]
[1758493826504,1.78677838,115390.0,115380.0,0.004]
[1758493826802,1.79317838,115390.0,115380.0,0.00829518]
[1758493827105,1.79317838,115390.0,115380.0,0.03011518]
[1758493827605,1.57893336,115390.0,115380.0,0.03011518]
[1758493827803,1.79317838,115390.0,115380.0,0.03011518]
[1758493829300,1.79317838,115390.0,115380.0,0.00829518]
[1758493829504,1.54317838,115390.0,115380.0,0.00869518]
[1758493831305,1.54301838,115390.0,115380.0,0.00869518]
[1758493831508,1.53661838,115390.0,115380.0,0.004]
[1758493832005,1.54301838,115390.0,115380.0,0.00829518]
[1758493832205,0.75169838,115390.0,115380.0,0.00829518]
[1758493832504,1.54297838,115390.0,115380.0,0.00829518]
[1758493833403,1.7572234,115390.0,115380.0,0.00829518]
[1758493833704,2.03042057,115390.0,115380.0,0.00869518]
[1758493835103,2.03038057,115390.0,115380.0,0.00869518]
[1758493836410,2.02398057,115390.0,115380.0,0.004]
[1758493836908,2.03038057,115390.0,115380.0,0.00829518]
[1758493837416,0.81069053,115390.0,115380.0,0.00829518]
[1758493837609,1.81609555,115390.0,115380.0,0.00829518]
[1758493839413,1.56605555,115390.0,115380.0,0.00829518]
[1758493839614,0.77493555,115390.0,115380.0,0.00829518]
[1758493839815,1.56605555,115390.0,115380.0,0.00829518]
[1758493840717,0.77493555,115390.0,115380.0,0.00829518]
[1758493840918,1.56601555,115390.0,115380.0,0.00829518]
[1758493841119,0.77493555,115390.0,115380.0,0.00829518]
[1758493841315,1.56601555,115390.0,115380.0,0.00829518]
[1758493841519,1.55961555,115390.0,115380.0,0.004]